bitfinex-derivatives/quotes_SOLF0:USTF0_20220102
["timestamp","ask_amount","ask_price","bid_price","bid_amount"]
[1641134510026,27.66479,175.48,175.47,4.04541565]
[1641134510425,55.32958,175.48,175.47,4.04541565]
[1641134512637,58.09984434,175.48,175.47,4.04541565]
[1641134514642,58.09984434,175.48,175.45,4.04541565]
[1641134515244,2.77026434,175.47,175.45,4.04541565]
[1641134516243,2.77026434,175.47,175.46,4.04541565]
[1641134517444,2.77026434,175.47,175.46,3.67751565]
[1641134517644,3.0,175.47,175.46,4.95284697]
[1641134517945,3.0,175.47,175.46,1.27534697]
[1641134518145,3.0,175.47,175.46,4.697e-05]
[1641134518445,5.77104335,175.47,175.4,16.70364504]
[1641134518645,3.0,175.44,175.4,12.14064504]
[1641134519150,8.46791292,175.47,175.4,12.14064504]
[1641134519450,67.47022504,175.48,175.4,21.07464504]
[1641134519650,12.14064504,175.47,175.4,8.934]
[1641134520250,55.32958,175.48,175.42,12.14064504]
[1641134520847,58.32958,175.48,175.42,12.14064504]
[1641134521050,55.32958,175.48,175.43,12.14064504]
[1641134521954,55.32958,175.48,175.41,12.14064504]
[1641134522351,27.66479,175.45,175.41,12.14064504]
[1641134524955,27.66479,175.45,175.42,12.14064504]
[1641134532263,27.66479,175.45,175.42,18.01864504]
[1641134532461,27.66479,175.48,175.42,18.01864504]
[1641134533363,27.66479,175.48,175.43,12.14064504]
[1641134535866,29.8694,175.5,175.43,12.14064504]
[1641134536566,27.66479,175.49,175.43,12.14064504]
[1641134537469,33.79979,175.49,175.43,12.14064504]
[1641134538169,33.79979,175.49,175.42,12.14064504]
[1641134538670,27.66479,175.44,175.42,12.14064504]
[1641134539670,33.79979,175.49,175.42,12.14064504]
[1641134539871,45.94043504,175.49,175.41,12.14064504]
[1641134540572,27.66479,175.46,175.41,12.14064504]
[1641134541372,27.66479,175.46,175.4,18.19643322]
[1641134542072,27.66479,175.46,175.41,12.14064504]
[1641134544574,27.66479,175.43,175.41,12.14064504]
[1641134547774,27.66479,175.43,175.42,12.14064504]
[1641134550779,27.66479,175.43,175.4,18.19643322]
[1641134552381,6.035,175.44,175.4,18.19643322]
[1641134552585,27.66479,175.46,175.4,18.19643322]
[1641134553087,27.66479,175.46,175.42,12.14064504]
[1641134554589,27.66479,175.43,175.42,12.14064504]
[1641134554791,32.25779,175.43,175.4,18.19643322]
[1641134555795,32.25779,175.43,175.41,12.14064504]
[1641134556292,32.25779,175.43,175.4,18.19643322]
[1641134558598,32.25779,175.43,175.4,19.47139118]
[1641134559098,32.25779,175.43,175.41,12.14064504]
[1641134560398,32.25779,175.43,175.42,12.14064504]
[1641134560599,27.66479,175.43,175.42,12.14064504]
[1641134561700,27.66479,175.43,175.41,12.14064504]
[1641134562399,27.66479,175.43,175.42,12.14064504]
[1641134563100,27.66479,175.43,175.41,12.14064504]
[1641134565102,27.66479,175.43,175.4,12.14064504]
[1641134567808,32.79379,175.43,175.39,12.14064504]
[1641134568506,32.79379,175.43,175.4,12.14064504]
[1641134570211,32.79379,175.43,175.38,13.415603]
[1641134570812,2.77211883,175.42,175.37,1.27495796]
[1641134571214,27.66479,175.4,175.37,1.27495796]
[1641134572212,27.66479,175.4,175.37,19.51327274]
[1641134579216,27.66479,175.4,175.38,12.14064504]
[1641134580719,37.48173976,175.42,175.38,12.14064504]
[1641134581118,4.04693976,175.42,175.38,12.14064504]
[1641134581320,4.04693976,175.42,175.4,3.0]
[1641134581721,31.71172976,175.45,175.41,13.415603]
[1641134582122,31.71172976,175.45,175.41,16.415603]
[1641134582325,31.71172976,175.45,175.41,13.415603]
[1641134586627,4.04693976,175.42,175.38,12.14064504]
[1641134587529,31.71172976,175.4,175.37,1.27495796]
[1641134588030,27.66479,175.4,175.37,19.51325244]
[1641134588832,27.66479,175.4,175.38,12.14064504]
[1641134589033,4.04693976,175.42,175.38,12.14064504]
[1641134589534,27.66479,175.42,175.39,12.14064504]
[1641134591236,27.66479,175.42,175.38,12.14064504]
[1641134591436,33.78079,175.42,175.38,12.14064504]
[1641134591637,27.66479,175.39,175.38,12.14064504]
[1641134592035,27.66479,175.39,175.37,19.51325244]
[1641134594838,4.04693976,175.41,175.37,22.51325244]
[1641134595038,4.04693976,175.43,175.37,1.27495796]
[1641134596242,27.66479,175.41,175.37,1.27495796]
[1641134596439,27.66479,175.41,175.38,3.0]
[1641134596643,27.66479,175.41,175.37,19.50262286]
[1641134599845,27.66479,175.41,175.38,12.14064504]
[1641134600045,21.1899071,175.41,175.38,12.14064504]
[1641134600245,21.1899071,175.41,175.37,19.50262286]
[1641134601445,4.04221908,175.43,175.37,19.50262286]
[1641134601646,4.04221908,175.43,175.37,24.73762286]
[1641134602047,4.04221908,175.43,175.37,27.73762286]
[1641134602248,31.70700908,175.44,175.39,12.14064504]
[1641134602847,4.04221908,175.44,175.39,12.14064504]
[1641134603049,36.38251908,175.45,175.43,4.04180469]
[1641134603247,4.04221908,175.45,175.43,10.06880469]
[1641134604248,4.04221908,175.45,175.44,5.31676265]
[1641134604950,4.04221908,175.45,175.44,4.04180469]
[1641134606457,27.66479,175.47,175.44,4.04180469]
[1641134606458,4.04221908,175.46,175.44,4.04180469]
[1641134610262,31.70700908,175.47,175.45,4.04180469]
[1641134610963,4.04221908,175.46,175.44,4.04180469]
[1641134612164,4.04221908,175.46,175.45,4.04180469]
[1641134612765,4.04221908,175.46,175.44,4.04180469]
[1641134613465,4.04221908,175.46,175.45,4.04180469]
[1641134614769,4.04221908,175.46,175.44,4.04180469]
[1641134615972,4.04221908,175.46,175.45,4.04180469]
[1641134617572,4.04221908,175.46,175.44,4.04180469]
[1641134618175,40.40387865,175.47,175.45,4.04180469]
[1641134618375,5.17,175.46,175.45,4.04180469]
[1641134618974,32.83479,175.46,175.45,4.04180469]
[1641134619277,47.74470301,175.46,175.41,4.04180469]
[1641134620674,4.04237351,175.42,175.4,4.04180469]
[1641134620875,27.66479,175.41,175.4,4.04180469]
[1641134621376,27.66479,175.41,175.37,13.415603]
[1641134621578,27.66479,175.41,175.37,19.50516502]
[1641134624479,27.66479,175.41,175.37,22.50516502]
[1641134624677,27.66479,175.41,175.37,19.50516502]
[1641134625278,27.66479,175.41,175.37,22.50516502]
[1641134625485,27.66479,175.41,175.37,19.50516502]
[1641134626079,27.66479,175.41,175.38,12.14064504]
[1641134627881,4.04237351,175.42,175.38,12.14064504]
[1641134629380,31.70716351,175.42,175.38,12.14064504]
[1641134630482,4.04237351,175.41,175.37,19.50516502]
[1641134632485,4.04237351,175.4,175.37,1.27495796]
[1641134633085,12.14064504,175.44,175.37,1.27495796]
[1641134633287,39.80543504,175.46,175.38,12.14064504]
[1641134633485,39.80543504,175.46,175.38,44.61844504]
[1641134634791,27.66479,175.46,175.39,18.23819787]
[1641134635488,39.80543504,175.46,175.38,44.61844504]
[1641134636590,42.80543504,175.46,175.38,44.61844504]
[1641134637192,3.0,175.45,175.38,12.14064504]
[1641134637396,27.66479,175.39,175.37,12.14064504]
[1641134637594,31.97079,175.39,175.37,12.14064504]
[1641134638293,31.97079,175.39,175.36,12.14064504]
[1641134639294,27.66479,175.39,175.36,12.14064504]
[1641134639695,27.66479,175.39,175.35,18.23854522]
[1641134640296,27.66479,175.39,175.36,12.14064504]
[1641134641800,27.66479,175.39,175.35,18.23854522]
[1641134645403,27.66479,175.39,175.36,12.14064504]
[1641134646003,27.66479,175.41,175.36,12.14064504]
[1641134646205,27.66479,175.41,175.37,12.14064504]
[1641134649013,27.66479,175.41,175.36,12.14064504]
[1641134651215,27.66479,175.41,175.37,12.14064504]
[1641134651915,27.66479,175.41,175.38,12.14064504]
[1641134652616,27.66479,175.41,175.36,12.14064504]
[1641134653214,27.66479,175.41,175.38,12.14064504]
[1641134654817,27.66479,175.41,175.37,12.14064504]
[1641134656718,27.66479,175.41,175.38,12.14064504]
[1641134658221,12.14064504,175.46,175.38,12.14064504]
[1641134659024,15.14064504,175.46,175.38,12.14064504]
[1641134659622,15.14064504,175.46,175.36,12.14064504]
[1641134659623,27.66479,175.39,175.36,12.14064504]
[1641134660725,21.18897828,175.39,175.36,12.14064504]
[1641134660926,21.18897828,175.39,175.35,18.23854522]
[1641134670839,21.18897828,175.39,175.35,12.14064504]
[1641134671041,21.18897828,175.39,175.34,31.0511]
[1641134672442,21.18897828,175.39,175.34,43.19174504]
[1641134673044,21.18897828,175.39,175.35,18.22547002]
[1641134674251,21.18897828,175.39,175.35,1.27194499]
[1641134676148,21.18897828,175.39,175.36,12.14064504]
[1641134679654,21.18897828,175.39,175.35,19.50941917]
[1641134680557,30.3484,175.4,175.35,19.50941917]
[1641134680755,3.0,175.38,175.35,19.50941917]
[1641134680955,9.826,175.38,175.35,19.50941917]
[1641134681155,6.826,175.38,175.35,19.50941917]
[1641134681555,9.826,175.38,175.35,19.50941917]
[1641134681756,2.7737878,175.37,175.32,12.14064504]
[1641134681959,27.66479,175.34,175.32,12.14064504]
[1641134683055,27.66479,175.37,175.32,12.14064504]
[1641134683256,27.66479,175.37,175.31,18.75564504]
[1641134683955,27.66479,175.33,175.31,18.75564504]
[1641134684155,27.66479,175.33,175.32,1.27194499]
[1641134685361,27.66479,175.33,175.31,12.14064504]
[1641134696873,27.66479,175.33,175.32,4.03170397]
[1641134699979,32.0309,175.36,175.32,4.03170397]
[1641134700480,27.66479,175.35,175.32,4.03170397]
[1641134700680,31.71319084,175.35,175.31,12.14064504]
[1641134704584,31.71319084,175.35,175.31,13.41259003]
[1641134705285,31.71319084,175.35,175.31,12.14064504]
[1641134705785,4.04840084,175.35,175.31,12.14064504]
[1641134705984,4.04840084,175.35,175.31,16.74464504]
[1641134706287,36.07930084,175.36,175.32,12.14064504]
[1641134706885,36.07930084,175.36,175.32,13.41259003]
[1641134707688,32.0309,175.36,175.33,12.14064504]
[1641134707889,4.04840084,175.37,175.33,12.14064504]
[1641134709791,31.71319084,175.38,175.34,12.14064504]
[1641134715802,4.04840084,175.38,175.34,12.14064504]
[1641134718200,2.77385868,175.38,175.36,4.04822792]
[1641134718801,30.43864868,175.38,175.36,4.04822792]
[1641134719603,27.66479,175.38,175.37,4.04822792]
[1641134720603,27.66479,175.38,175.36,4.04822792]
[1641134721403,33.1071,175.4,175.33,30.6675]
[1641134721605,33.1071,175.4,175.33,36.4265]
[1641134722004,33.1071,175.4,175.37,4.04335471]
[1641134722205,3.0,175.41,175.37,10.29235471]
[1641134723208,3.0,175.41,175.37,6.249]
[1641134723408,2.77023988,175.4,175.34,18.23095298]
[1641134724110,3.0,175.41,175.37,4.04347234]
[1641134724808,3.0,175.41,175.33,12.14064504]
[1641134725007,2.77034586,175.4,175.35,1.2730256]
[1641134725808,3.0,175.41,175.35,1.2730256]
[1641134726009,3.0,175.41,175.36,4.04357571]
[1641134726613,3.0,175.41,175.33,1.2730256]
[1641134726814,3.0,175.41,175.38,4.04780408]
[1641134726815,2.77339246,175.4,175.38,4.04780408]
[1641134727410,3.0,175.41,175.34,12.14064504]
[1641134728515,2.77342752,175.4,175.38,4.04783596]
[1641134729215,27.66479,175.39,175.34,12.14064504]
[1641134729914,27.66479,175.39,175.38,4.04774744]
[1641134730416,27.66479,175.39,175.34,12.14064504]
[1641134730616,30.43836829,175.39,175.37,4.04797302]
[1641134731414,27.66479,175.39,175.33,12.14064504]
[1641134731617,2.7735478,175.38,175.33,12.14064504]
[1641134732216,27.66479,175.39,175.37,4.04793321]
[1641134732916,27.66479,175.39,175.38,4.04769113]
[1641134733620,30.4380536,175.39,175.35,1.2730256]
[1641134734719,4.04768259,175.38,175.35,1.2730256]
[1641134735319,31.71244139,175.39,175.35,13.41367064]
[1641134735518,31.71244139,175.39,175.35,19.51057662]
[1641134736119,27.66479,175.39,175.35,19.51057662]
[1641134736922,31.71243587,175.39,175.35,19.51057662]
[1641134737522,27.66479,175.39,175.35,13.41367064]
[1641134737721,4.04782349,175.38,175.35,1.2730256]
[1641134738421,27.66479,175.39,175.34,43.43494504]
[1641134738621,4.04068455,175.39,175.34,31.2943]
[1641134739223,2.76848053,175.41,175.35,1.2722022]
[1641134739423,27.66479,175.4,175.35,1.2722022]
[1641134740122,31.70542657,175.4,175.35,1.2722022]
[1641134741023,27.66479,175.4,175.35,1.2722022]
[1641134741723,31.70538798,175.4,175.35,1.2722022]
[1641134743323,4.04059798,175.4,175.35,1.2722022]
[1641134743723,4.04051938,175.41,175.35,1.2722022]
[1641134743924,27.66479,175.4,175.35,1.2722022]
[1641134744625,31.70541773,175.4,175.35,1.2722022]
[1641134745125,27.66479,175.4,175.35,1.2722022]
[1641134745825,32.45779,175.4,175.35,1.2722022]
[1641134746225,35.45779,175.4,175.35,1.2722022]
[1641134746424,4.04091085,175.39,175.35,1.2722022]
[1641134747023,3.0,175.37,175.35,1.2722022]
[1641134747227,7.04091085,175.39,175.35,1.2722022]
[1641134747423,3.0,175.39,175.32,12.14064504]
[1641134747624,4.04139635,175.36,175.31,1.27213084]
[1641134748024,27.66479,175.35,175.31,1.27213084]
[1641134749227,31.71334106,175.35,175.31,12.14064504]
[1641134749925,27.66479,175.35,175.31,12.14064504]
[1641134750128,27.66479,175.35,175.34,4.04861315]
[1641134750726,30.43916491,175.35,175.3,26.07904173]
[1641134751528,27.66479,175.35,175.34,4.04869624]
[1641134752126,12.14608872,175.38,175.3,24.80691089]
[1641134752335,2.77440727,175.35,175.3,24.80691089]
[1641134752927,27.66479,175.35,175.34,4.048586]
[1641134753130,27.66479,175.35,175.34,9.039586]
[1641134753831,30.43902685,175.35,175.34,6.26533344]
[1641134754532,27.66479,175.35,175.34,4.991]
[1641134755135,27.66479,175.35,175.34,6.26533523]
[1641134755833,27.66479,175.35,175.34,4.991]
[1641134756334,32.5838,175.37,175.34,4.991]
[1641134756532,15.14570188,175.39,175.34,6.26533546]
[1641134756933,27.66479,175.35,175.34,6.26533546]
[1641134757232,27.66479,175.35,175.34,4.991]
[1641134757437,27.66479,175.35,175.31,12.14064504]
[1641134757933,30.43923225,175.35,175.3,18.23791089]
[1641134758535,27.66479,175.35,175.3,18.23791089]
[1641134759634,27.66479,175.35,175.3,12.14064504]
[1641134759836,27.66479,175.35,175.29,131.40002289]
[1641134765544,21.18677674,175.35,175.29,131.40002289]
[1641134766345,31.2991,175.36,175.29,131.40002289]
[1641134766547,31.2991,175.36,175.29,136.01202289]
[1641134768447,4.0312631,175.34,175.3,18.23687826]
[1641134770048,4.0312631,175.35,175.31,12.14064504]
[1641134773455,2.77475576,175.35,175.34,4.04867539]
[1641134774154,2.77475576,175.36,175.34,4.04867539]
[1641134774757,2.77475576,175.36,175.35,4.04867539]
[1641134776256,2.77475576,175.36,175.34,4.04867539]
[1641134777157,2.77475576,175.36,175.33,4.04867539]
[1641134777357,27.66479,175.34,175.33,4.04867539]
[1641134779859,27.66479,175.34,175.29,19.51083987]
[1641134779860,27.66479,175.34,175.3,12.14064504]
[1641134780459,27.66479,175.34,175.33,4.04856948]
[1641134781062,27.66479,175.34,175.33,5.32249853]
[1641134783370,27.66479,175.34,175.3,12.14064504]
[1641134785470,27.66479,175.34,175.33,4.04859036]
[1641134787273,31.7615,175.36,175.33,4.04859036]
[1641134787473,15.14570188,175.38,175.33,4.04859036]
[1641134787773,27.66479,175.34,175.33,4.04859036]
[1641134788374,2.77473429,175.37,175.33,4.04859036]
[1641134788875,2.77473429,175.37,175.34,4.04859036]
[1641134789975,42.58522617,175.38,175.34,4.04859036]
[1641134790175,14.92043617,175.38,175.34,4.04859036]
[1641134790778,2.77473429,175.4,175.37,4.04859036]
[1641134798087,27.66479,175.38,175.37,4.04859036]
[1641134798488,30.43952429,175.38,175.37,4.04859036]
[1641134798687,2.77473429,175.38,175.37,4.04859036]
[1641134799390,70.30289188,175.41,175.34,35.73899036]
[1641134799589,58.15719,175.41,175.34,35.73899036]
[1641134799992,58.15719,175.41,175.35,5.31757787]
[1641134801993,58.15719,175.41,175.34,35.73899036]
[1641134804200,4.03200764,175.4,175.34,35.73899036]
[1641134804601,4.03200764,175.4,175.35,5.31757973]
[1641134807303,7.03200764,175.4,175.35,5.31757973]
[1641134807705,4.03200764,175.4,175.35,5.31757973]
[1641134807910,4.03200764,175.39,175.33,31.71338036]
[1641134808807,14.90905766,175.4,175.36,4.04859036]
[1641134809510,2.76335578,175.4,175.37,4.04859036]
[1641134810110,2.76335578,175.4,175.38,4.04859036]
[1641134813422,14.90905766,175.4,175.36,4.04859036]
[1641134814016,2.76335578,175.4,175.37,4.04859036]
[1641134816818,14.90905766,175.4,175.36,4.04859036]
[1641134819923,2.76335578,175.4,175.35,5.32255103]
[1641134823125,2.76335578,175.4,175.36,4.04859036]
[1641134823926,4.04368948,175.37,175.36,4.04859036]
[1641134826332,70.30289188,175.41,175.34,30.6265]
[1641134827032,4.04374255,175.37,175.35,4.04374255]
[1641134827232,4.04374255,175.37,175.35,5.31631771]
[1641134828335,70.30289188,175.41,175.34,4.27257381]
[1641134828533,70.30289188,175.41,175.35,3.0]
[1641134828735,39.81049188,175.41,175.34,7.00257381]
[1641134828936,2.77389968,175.4,175.38,4.04789713]
[1641134829134,2.77389968,175.4,175.38,10.23989713]
[1641134829733,27.66479,175.41,175.38,6.192]
[1641134829934,27.66479,175.41,175.39,5.32161118]
[1641134830934,2.77352698,175.4,175.38,6.192]
[1641134831536,27.66479,175.41,175.38,6.192]
[1641134831736,27.66479,175.41,175.39,5.32157858]
[1641134832237,27.66479,175.41,175.38,6.192]
[1641134832437,2.77351547,175.4,175.38,6.192]
[1641134833035,27.66479,175.41,175.38,6.192]
[1641134833237,12.14570188,175.43,175.39,5.32156844]
[1641134833635,12.14570188,175.43,175.38,6.192]
[1641134834241,12.14570188,175.43,175.39,5.32159119]
[1641134835436,12.14570188,175.43,175.38,6.637]
[1641134835836,12.14570188,175.43,175.35,43.28354504]
[1641134836041,12.14570188,175.43,175.39,4.0475749]
[1641134836238,12.14570188,175.43,175.39,5.32160457]
[1641134836841,12.14570188,175.43,175.36,1.27402886]
[1641134837540,12.14570188,175.43,175.36,28.93881886]
[1641134838141,12.14570188,175.43,175.38,3.0]
[1641134838341,5.69557169,175.51,175.39,4.0475603]
[1641134838544,47.59740027,175.52,175.42,3.0]
[1641134838743,47.59740027,175.52,175.42,9.274]
[1641134838942,47.59740027,175.52,175.43,3.0]
[1641134839144,12.1392932,175.49,175.45,4.04643107]
[1641134840245,12.1392932,175.49,175.43,29.6955]
[1641134840448,39.8040832,175.5,175.46,4.0460666]
[1641134841546,27.66479,175.5,175.43,58.81909]
[1641134842146,33.69079,175.5,175.43,24.68067413]
[1641134842347,36.69079,175.5,175.4,27.66479]
[1641134842546,33.69079,175.5,175.39,4.00901116]
[1641134843448,33.69079,175.5,175.4,27.66479]
[1641134845950,33.69079,175.5,175.42,3.0]
[1641134846151,33.34356148,175.52,175.42,3.0]
[1641134846750,33.34356148,175.52,175.41,29.8075]
[1641134846951,29.3342,175.52,175.41,29.8075]
[1641134847552,27.66479,175.51,175.41,29.8075]
[1641134850052,12.1392932,175.5,175.46,4.00901116]
[1641134852855,16.8072932,175.5,175.46,4.00901116]
[1641134853953,12.1392932,175.5,175.46,4.00901116]
[1641134854155,12.1392932,175.51,175.47,4.00901116]
[1641134854354,15.1392932,175.51,175.47,4.00901116]
[1641134854755,12.1392932,175.51,175.47,4.00901116]
[1641134854955,12.1392932,175.49,175.45,4.00901116]
[1641134856857,12.1392932,175.5,175.46,4.00901116]
[1641134859165,41.4734932,175.52,175.46,4.00901116]
[1641134859661,44.4734932,175.52,175.46,4.00901116]
[1641134859860,41.4734932,175.52,175.46,4.00901116]
[1641134860862,3.0,175.49,175.46,4.00901116]
[1641134861063,8.628,175.49,175.46,4.00901116]
[1641134861562,5.628,175.49,175.46,4.00901116]
[1641134862164,17.7672932,175.49,175.44,4.00901116]
[1641134862765,5.628,175.49,175.45,4.00901116]
[1641134863662,5.628,175.49,175.43,27.66479]
[1641134863663,5.628,175.49,175.44,4.00901116]
[1641134865666,4.04071793,175.47,175.45,4.00901116]
[1641134866267,4.04071793,175.46,175.44,4.00901116]
[1641134867269,4.04071793,175.47,175.45,4.00901116]
[1641134870476,31.8455,175.49,175.46,4.00901116]
[1641134870672,12.1392932,175.5,175.46,4.00901116]
[1641134873472,12.1392932,175.5,175.45,4.00901116]
[1641134873671,12.1392932,175.49,175.45,4.00901116]
[1641134875073,16.7162932,175.5,175.46,4.00901116]
[1641134875272,45.8418932,175.5,175.46,4.00901116]
[1641134876872,33.7026,175.5,175.46,4.00901116]
[1641134877474,45.8418932,175.5,175.46,4.00901116]
[1641134878374,45.8418932,175.5,175.45,4.00901116]
[1641134878974,2.76995584,175.49,175.45,4.00901116]
[1641134882380,14.90924904,175.49,175.45,4.00901116]
[1641134883583,2.76995584,175.49,175.45,4.00901116]
[1641134885787,4.04492174,175.46,175.45,4.00901116]
[1641134887190,2.76995584,175.49,175.45,4.00901116]
[1641134887386,14.90924904,175.49,175.45,4.00901116]
[1641134888589,4.04494053,175.46,175.45,4.00901116]
[1641134888789,7.04494053,175.46,175.41,12.14064504]
[1641134888990,3.0,175.43,175.41,12.14064504]
[1641134889189,3.0,175.42,175.41,12.14064504]
[1641134889389,8.806,175.42,175.35,12.14064504]
[1641134889590,3.0,175.41,175.35,12.14064504]
[1641134889991,5.806,175.42,175.35,12.14064504]
[1641134890390,27.66479,175.41,175.34,12.14064504]
[1641134893894,27.66479,175.41,175.33,18.23881825]
[1641134895598,39.8040832,175.41,175.33,18.23881825]
[1641134901910,42.8040832,175.41,175.33,18.23881825]
[1641134902111,39.8040832,175.41,175.33,18.23881825]
[1641134902913,27.66479,175.41,175.33,18.23881825]
[1641134903411,30.66479,175.41,175.33,18.23881825]
[1641134903610,42.80837534,175.41,175.33,18.23881825]
[1641134904210,30.66479,175.41,175.33,18.23881825]
[1641134904914,42.80835933,175.41,175.33,18.23881825]
[1641134905614,30.66479,175.41,175.33,18.23881825]
[1641134906213,42.80837427,175.41,175.33,18.23881825]
[1641134906913,30.66479,175.41,175.33,18.23881825]
[1641134907716,42.80842794,175.41,175.33,18.23881825]
[1641134908317,30.66479,175.41,175.33,18.23881825]
[1641134909017,42.80839457,175.41,175.33,18.23881825]
[1641134909621,30.66479,175.41,175.33,18.23881825]
[1641134910521,42.80842306,175.41,175.33,18.23881825]
[1641134910922,30.66479,175.41,175.33,18.23881825]
[1641134911622,42.80837708,175.41,175.33,18.23881825]
[1641134912222,30.66479,175.41,175.33,18.23881825]
[1641134912823,42.80837502,175.41,175.33,18.23881825]
[1641134914922,39.80837502,175.41,175.33,18.23881825]
[1641134916027,35.76079,175.41,175.33,18.23881825]
[1641134916225,3.0,175.4,175.33,18.23881825]
[1641134917127,47.90489978,175.41,175.33,18.23881825]
[1641134925438,35.76079,175.41,175.33,18.23881825]
[1641134925636,30.66479,175.41,175.33,18.23881825]
[1641134926336,3.0,175.41,175.33,18.23881825]
[1641134926539,15.14397067,175.41,175.33,18.23881825]
[1641134927237,3.0,175.41,175.33,18.23881825]
[1641134927440,30.66479,175.41,175.33,12.14064504]
[1641134927941,42.80662638,175.41,175.33,18.23881825]
[1641134929239,2.77265746,175.4,175.33,19.51346028]
[1641134930241,12.14183638,175.4,175.33,1.27464203]
[1641134930941,2.77288754,175.4,175.33,1.27464203]
[1641134931541,14.91540606,175.4,175.32,27.66479]
[1641134932242,14.91540606,175.4,175.33,1.27462078]
[1641134932743,14.91540606,175.4,175.32,33.55379]
[1641134933545,14.91540606,175.4,175.33,1.27462165]
[1641134934046,14.91540606,175.4,175.32,33.55379]
[1641134934244,14.91540606,175.4,175.32,39.80543504]
[1641134934445,14.91540606,175.4,175.32,12.14064504]
[1641134934650,5.70027931,175.36,175.32,12.14064504]
[1641134934945,10.61927931,175.36,175.32,12.14064504]
[1641134935144,3.0,175.33,175.31,12.14064504]
[1641134935345,3.0,175.32,175.31,12.14064504]
[1641134935548,65.22858,175.32,175.31,12.14064504]
[1641134936350,65.22858,175.32,175.31,5.40304504]
[1641134936548,73.70304688,175.32,175.26,12.14655768]
[1641134936747,3.0,175.29,175.26,12.14655768]
[1641134937549,27.66479,175.27,175.2,6.0978663]
[1641134937748,26.8904667,175.27,175.2,6.0978663]
[1641134938348,26.8904667,175.27,175.21,3.0]
[1641134938551,26.8904667,175.27,175.21,5.028]
[1641134939549,26.8904667,175.27,175.2,6.0978663]
[1641134942751,26.8904667,175.27,175.2,9.0978663]
[1641134942953,26.8904667,175.27,175.2,6.0978663]
[1641134945155,26.8904667,175.27,175.2,9.0978663]
[1641134945354,27.66479,175.32,175.22,3.0]
[1641134945653,27.66479,175.32,175.23,27.66479]
[1641134946057,27.66479,175.32,175.23,30.66479]
[1641134946654,27.66479,175.32,175.23,27.66479]
[1641134947056,27.66479,175.32,175.24,6.0978663]
[1641134948659,30.66479,175.32,175.24,6.0978663]
[1641134949262,31.69220873,175.32,175.23,4.02741873]
[1641134950162,27.66479,175.32,175.25,4.02741873]
[1641134951568,27.66479,175.32,175.25,5.29420301]
[1641134953068,27.66479,175.32,175.26,4.02741873]
[1641134954272,31.69220873,175.35,175.27,4.02741873]
[1641134954471,31.69220873,175.35,175.27,9.57441873]
[1641134955072,27.66479,175.35,175.27,5.547]
[1641134955674,27.66479,175.35,175.28,27.66479]
[1641134957579,36.3642571,175.39,175.28,27.66479]
[1641134957779,30.8605,175.38,175.29,30.9343]
[1641134959281,4.04047512,175.37,175.34,4.04047512]
[1641134965189,4.04047512,175.35,175.32,4.04047512]
[1641134965988,4.04047512,175.36,175.33,4.04047512]
[1641134967491,4.04047512,175.35,175.32,4.04047512]
[1641134969593,2.7688094,175.38,175.3,1.2715621]
[1641134970495,36.36409468,175.39,175.29,30.9343]
[1641134970696,33.36409468,175.39,175.29,30.9343]
[1641134970898,36.36409468,175.39,175.29,30.9343]
[1641134971697,33.36409468,175.39,175.29,30.9343]
[1641134972097,4.04344769,175.33,175.31,4.04344769]
[1641134973900,4.04344769,175.33,175.32,4.04344769]
[1641134974100,4.04344769,175.34,175.32,4.04344769]
[1641134974706,4.04344769,175.34,175.31,5.31566244]
[1641134975701,4.04344769,175.34,175.32,4.04344769]
[1641134976902,4.04344769,175.33,175.32,4.04344769]
[1641134977502,4.04344769,175.34,175.32,4.04344769]
[1641134979105,4.04344769,175.33,175.32,4.04344769]
[1641134981107,4.04344769,175.34,175.32,4.04344769]
[1641134981305,4.04344769,175.34,175.32,9.47444769]
[1641134981905,4.04344769,175.35,175.33,5.31566244]
[1641134982707,4.04344769,175.35,175.33,4.04344769]
[1641134983607,4.04344769,175.35,175.34,4.04344769]
[1641134984211,4.04344769,175.36,175.34,4.04344769]
[1641134985710,4.04344769,175.35,175.34,4.04344769]
[1641134988017,4.04344769,175.35,175.31,19.49888331]
[1641134991220,2.77163595,175.37,175.34,4.04857784]
[1641134994022,8.47159035,175.37,175.34,4.04857784]
[1641134994221,3.0,175.35,175.34,7.784e-05]
[1641134994423,36.36588176,175.35,175.34,7.784e-05]
[1641134994622,39.13751771,175.35,175.3,12.13034306]
[1641134994824,39.13751771,175.35,175.28,12.13034306]
[1641134996128,2.77163595,175.34,175.27,19.49894212]
[1641134996424,9.57363595,175.34,175.27,19.49894212]